Workbook

Sheet HOME
B2: RECIPE COSTING TOOL
L4: =TODAY() -> 2024-06-24
L6: =IF(L4>L5,"X","") -> X

Sheet INGREDIENTS
B1: Ingredients | C1: Size | D1: Total Cost | E1: Total Qty | F1: Unit | G1: Cost Per Each/Gm or Ml
B2: UNSALTED BUTTER | C2: Grams | D2: 25.6 | E2: 1500 | F2: Grams | G2: =IFERROR(D2/E2,0) -> 0.01706666667
B3: CASTER SUGAR | C3: Grams | D3: 31.9 | E3: 15000 | F3: Grams | G3: 0.002126666667
B4: DARK CHOC | C4: Grams | D4: 74 | E4: 2500 | F4: Grams | G4: 0.0296
B5: EGG | C5: Grams | D5: 70 | E5: 9000 | F5: Grams | G5: 0.007777777778
B6: STRONG FLOUR | C6: Grams | D6: 25.85 | E6: 12500 | F6: Grams | G6: 0.002068
B7: COCOA POWDER | C7: Grams | D7: 8.25 | E7: 500 | F7: Grams | G7: 0.0165
B8: BAKING POWDER | C8: Grams | D8: 4.12 | E8: 500 | F8: Grams | G8: 0.00824
B9: SALT | C9: Grams | D9: 16.5 | E9: 10000 | F9: Grams | G9: 0.00165
B10: VANILLA | C10: Grams | D10: 33 | E10: 600 | F10: Grams | G10: 0.055
B11: GROUND COFFEE | C11: Grams | D11: 32 | E11: 1000 | F11: Grams | G11: 0.032
B12: MUSTARD | C12: Grams | D12: 20 | E12: 2200 | F12: Grams | G12: 0.009090909091
B13: VEG OIL | C13: Ml | D13: 67.5 | E13: 20000 | F13: Ml | G13: 0.003375
B14: SR FLOUR | C14: Grams | D14: 16.77 | E14: 12500 | F14: Grams | G14: 0.0013416
B15: BROWN SUGAR | C15: Grams | D15: 5.05 | E15: 1000 | F15: Grams | G15: 0.00505
B16: BANANA | C16: Grams | D16: 26 | E16: 10000 | F16: Grams | G16: 0.0026
B17: 00 FLOUR | C17: Grams | D17: 22.75 | E17: 12500 | F17: Grams | G17: 0.00182
B18: EVOO | C18: Grams | D18: 256.25 | E18: 20000 | F18: Grams | G18: 0.0128125
B19: YEAST | C19: Grams | D19: 10 | E19: 1000 | F19: Grams | G19: 0.01
B20: FIOR DI LATTE | C20: Grams | D20: 15.9 | E20: 1000 | F20: Grams | G20: 0.0159
B21: GRANA PADANO | C21: Grams | D21: 26.5 | E21: 1000 | F21: Grams | G21: 0.0265
B22: PEELED TOMATOES | C22: Grams | D22: 12.5 | E22: 2500 | F22: Grams | G22: 0.005
B23: BASIL | C23: Grams | D23: 3.95 | E23: 100 | F23: Grams | G23: 0.0395
B24: VANILLA GELATO | C24: Grams | D24: 40.75 | E24: 5000 | F24: Grams | G24: 0.00815
B25: ICING SUGAR | C25: Grams | D25: 6.5 | E25: 1000 | F25: Grams | G25: 0.0065
B26: HOISIN SAUCE | C26: Grams | D26: 42 | E26: 11335 | F26: Grams | G26: 0.00370533745
B27: CHOC BROWNIE | C27: Grams | D27: 106.94 | E27: 8030 | F27: Grams | G27: 0.01331755915
B28: BREAD | C28: Each | D28: 5 | E28: 15 | F28: No | G28: 0.3333333333
B29: LETUCE | C29: Grams | D29: 5 | E29: 1000 | F29: Grams | G29: 0.005
B30: MEAT | C30: Grams | D30: 7 | E30: 1000 | F30: Grams | G30: =IFERROR(D30/E30,0) -> 0.007
G31: 0
G32: 0
G33: 0
G34: 0
G35: 0
G36: 0
G37: 0
G38: 0
G39: 0
G40: 0
G41: 0
G42: 0
G43: 0
G44: 0
G45: 0
G46: 0
G47: 0
G48: 0
G49: 0
G50: 0
G51: 0
G52: 0
G53: 0
G54: 0
G55: 0
G56: 0
G57: 0
G58: 0
G59: 0
G60: 0
G61: 0
G62: 0
G63: 0
G64: 0
G65: =IFERROR(D65/E65,0) -> 0
G66: 0
G67: 0
G68: 0
G69: 0
G70: 0
G71: 0
G72: 0
G73: 0
G74: 0
G75: 0
G76: 0
G77: 0
G78: 0
G79: 0
G80: 0
G81: 0
G82: 0
G83: 0
G84: 0
G85: 0
G86: 0
G87: 0
G88: 0
G89: 0
G90: 0
G91: 0
G92: 0
G93: 0
G94: 0
G95: 0
G96: 0
G97: 0
G98: 0
G99: 0
G100: 0
G101: 0
G102: 0
G103: 0
G104: 0
G105: 0
G106: 0
G107: 0
G108: 0
G109: 0
G110: 0
G111: 0
G112: 0
G113: 0
G114: 0
G115: 0
G116: 0
G117: 0
G118: 0
G119: 0
G120: 0
G121: 0
G122: 0
G123: 0
G124: 0
G125: 0
G126: 0
G127: 0
G128: 0
G129: =IFERROR(D129/E129,0) -> 0
G130: 0
G131: 0
G132: 0
G133: 0
G134: 0
G135: 0
G136: 0
G137: 0
G138: 0
G139: 0
G140: 0
G141: 0
G142: 0
G143: 0
G144: 0
G145: 0
G146: 0
G147: 0
G148: 0
G149: 0
G150: 0
G151: 0
G152: 0
G153: 0
G154: 0
G155: 0
G156: 0
G157: 0
G158: 0
G159: 0
G160: 0
G161: 0
G162: 0
G163: 0
G164: 0
G165: 0
G166: 0
G167: 0
G168: 0
G169: 0
G170: 0
G171: 0
G172: 0
G173: 0
G174: 0
G175: 0
G176: 0
G177: 0
G178: 0
G179: 0
G180: 0
G181: 0
G182: 0
G183: 0
G184: 0
G185: 0
G186: 0
G187: 0
G188: 0
G189: 0
G190: 0
G191: 0
G192: 0
G193: =IFERROR(D193/E193,0) -> 0
G194: 0
G195: 0
G196: 0
G197: 0
G198: 0
G199: 0
G200: 0
... 215 more rows

Sheet PRICING REPORT
B2: RECIPE COSTING REPORT
B5: SL NO | C5: CAKE | F5: COST | G5: UNIT
B6: 1 | C6: BROWNIE | F6: 1.06 | G6: 1 No
B7: 2 | C7: Butter Cake | F7: 2.85 | G7: 1 No
B8: 3 | C8: VANILA CAKE | F8: 4.28 | G8: 1 No
B11: SL NO | C11: SANDWICH | F11: COST | G11: UNIT
B12: 1 | C12: Veg Sandwich | F12: 2.6 | G12: 1 No
B15: SL NO | C15: DRINKS | F15: COST | G15: UNIT
B16: 1 | C16: BROWNIE SHAKE | F16: 4.25 | G16: 1 No
B19: SL NO | C19: Cat 4 | F19: COST | G19: UNIT
B22: SL NO | C22: Cat 5 | F22: COST | G22: UNIT

Sheet INGREDIENT REPORT
A2: H | B2: INGREDIENT REPORT | O2: 00 FLOUR | P2: 7500 | Q2: Grams
O3: BAKING POWDER | P3: 200 | Q3: Grams
O4: BAKING POWDER | P4: 150 | Q4: Grams
O5: COCOA POWDER | P5: 3000 | Q5: Grams
O6: VEG OIL | P6: 40000 | Q6: Ml
O7: UNSALTED BUTTER | P7: 200 | Q7: Grams
A8: H | B8: SL NO | C8: RECIPE | D8: QTY | E8: Unit Size | H8: Recipe Sheet | I8: Row No | O8: ICING SUGAR | P8: 1000 | Q8: Grams
B9: 1 | C9: BROWNIE | D9: 20 | E9: 10/No | H9: R-CAKE | I9: =IFERROR(MATCH("U-" &C9,INDIRECT("'" & H9 &"'!B:B"),FALSE),"") -> 6 | O9: ICING SUGAR | P9: 3000 | Q9: Grams
B10: 2 | C10: Butter Cake | D10: 30 | E10: 1/No | H10: R-CAKE | I10: =IFERROR(MATCH("U-" &C10,INDIRECT("'" & H10 &"'!B:B"),FALSE),"") -> 22 | O10: UNSALTED BUTTER | P10: 3000 | Q10: Grams
O11: VANILLA GELATO | P11: 2000 | Q11: Grams
A13: H | B13: SL NO | C13: INDREDIENT | D13: QTY | E13: UNIT
B14: 1 | C14: 00 FLOUR | D14: 7500 | E14: Grams
B15: 2 | C15: BAKING POWDER | D15: 350 | E15: Grams
B16: 3 | C16: COCOA POWDER | D16: 3000 | E16: Grams
B17: 4 | C17: VEG OIL | D17: 40000 | E17: Ml
B18: 5 | C18: UNSALTED BUTTER | D18: 200 | E18: Grams
B19: 6 | C19: ICING SUGAR | D19: 4000 | E19: Grams
B20: 7 | C20: UNSALTED BUTTER | D20: 3000 | E20: Grams
B21: 8 | C21: VANILLA GELATO | D21: 2000 | E21: Grams

Sheet ADD RECIPE (hidden)
C2: RECIPE NAME: | D2: Recipe Name Here
B3: ="U-" & D2 -> U-Recipe Name Here | C3: UNIT SIZE: | D3: 1 | E3: No
C4: FINISHED QUANTITY: | D4: 1 | E4: No
B5: ="P-" &D2 -> P-Recipe Name Here | C5: UNIT PRICE Rs: | D5: =IFERROR(ROUND(H24/D4*D3,2),0) -> 0 | E5: ="/" & D3 & " " & E3 -> /1 No
C6: PREPARATION | D6: INGREDIENTS | E6: RECIPE QUANTITY | F6: RECIPE QTY UNIT | G6: COSTING UNIT PRICE | H6: RECIPE QTY COST
B7: I | D7: Select Ingredient | E7: 0 | H7: =IFERROR(PRODUCT(G7,E7),0) -> 0
B8: I | D8: Select Ingredient | E8: 0 | H8: =IFERROR(PRODUCT(G8,E8),0) -> 0
B9: I | D9: Select Ingredient | E9: 0 | H9: 0
B10: I | D10: Select Ingredient | E10: 0 | H10: 0
B11: I | D11: Select Ingredient | E11: 0 | H11: 0
B12: I | D12: Select Ingredient | E12: 0 | H12: 0
B13: I | D13: Select Ingredient | E13: 0 | H13: 0
B14: I | D14: Select Ingredient | E14: 0 | H14: 0
B15: I | D15: Select Ingredient | E15: 0 | H15: 0
B16: I | D16: Select Ingredient | E16: 0 | H16: 0
B17: I | D17: Select Ingredient | E17: 0 | H17: =IFERROR(PRODUCT(G17,E17),0) -> 0
B18: I | D18: Select Ingredient | E18: 0 | H18: 0
B19: I | D19: Select Ingredient | E19: 0 | H19: 0
B20: I | D20: Select Ingredient | E20: 0 | H20: 0
B21: I | D21: Select Ingredient | E21: 0 | H21: =IFERROR(PRODUCT(G21,E21),0) -> 0
B22: I
D24: TOTAL COST | H24: =SUM(H7:H23) -> 0

Sheet TEMPLATE (hidden)
C2: RECIPES

Sheet R-CAKE
C2: RECIPES
C5: RECIPE NAME: | D5: BROWNIE
B6: ="U-" & D5 -> U-BROWNIE | C6: UNIT SIZE: | D6: 1 | E6: No
C7: FINISHED QUANTITY: | D7: 10 | E7: No
B8: ="P-" &D5 -> P-BROWNIE | C8: UNIT PRICE Rs: | D8: =IFERROR(ROUND(H18/D7*D6,2),0) -> 1.06 | E8: ="/" & D6 & " " & E6 -> /1 No
C9: PREPARATION | D9: INGREDIENTS | E9: RECIPE QUANTITY | F9: RECIPE QTY UNIT | G9: COSTING UNIT PRICE | H9: RECIPE QTY COST
B10: I | D10: BAKING POWDER | E10: 10 | F10: =IFERROR(VLOOKUP(D10,INGREDIENTS!$B:$G,5,FALSE),"") -> Grams | G10: =IFERROR(VLOOKUP(D10,INGREDIENTS!$B:$G,6,FALSE),"") -> 0.00824 | H10: =IFERROR(PRODUCT(G10,E10),0) -> 0.0824
B11: I | D11: COCOA POWDER | E11: 150 | F11: =IFERROR(VLOOKUP(D11,INGREDIENTS!$B:$G,5,FALSE),"") -> Grams | G11: =IFERROR(VLOOKUP(D11,INGREDIENTS!$B:$G,6,FALSE),"") -> 0.0165 | H11: 2.475
B12: I | D12: VANILLA GELATO | E12: 100 | F12: =IFERROR(VLOOKUP(D12,INGREDIENTS!$B:$G,5,FALSE),"") -> Grams | G12: =IFERROR(VLOOKUP(D12,INGREDIENTS!$B:$G,6,FALSE),"") -> 0.00815 | H12: 0.815
B13: I | D13: ICING SUGAR | E13: 50 | F13: =IFERROR(VLOOKUP(D13,INGREDIENTS!$B:$G,5,FALSE),"") -> Grams | G13: =IFERROR(VLOOKUP(D13,INGREDIENTS!$B:$G,6,FALSE),"") -> 0.0065 | H13: 0.325
B14: I | D14: VEG OIL | E14: 2000 | F14: =IFERROR(VLOOKUP(D14,INGREDIENTS!$B:$G,5,FALSE),"") -> Ml | G14: =IFERROR(VLOOKUP(D14,INGREDIENTS!$B:$G,6,FALSE),"") -> 0.003375 | H14: 6.75
B15: I | D15: UNSALTED BUTTER | E15: 10 | F15: =IFERROR(VLOOKUP(D15,INGREDIENTS!$B:$G,5,FALSE),"") -> Grams | G15: =IFERROR(VLOOKUP(D15,INGREDIENTS!$B:$G,6,FALSE),"") -> 0.01706666667 | H15: 0.1706666667
B16: I
D18: TOTAL COST | H18: =SUM(H10:H17) -> 10.61806667
C21: RECIPE NAME: | D21: Butter Cake
B22: ="U-" & D21 -> U-Butter Cake | C22: UNIT SIZE: | D22: 1 | E22: No
C23: FINISHED QUANTITY: | D23: 1 | E23: No
B24: ="P-" &D21 -> P-Butter Cake | C24: UNIT PRICE Rs: | D24: =IFERROR(ROUND(H32/D23*D22,2),0) -> 2.85 | E24: ="/" & D22 & " " & E22 -> /1 No
C25: PREPARATION | D25: INGREDIENTS | E25: RECIPE QUANTITY | F25: RECIPE QTY UNIT | G25: COSTING UNIT PRICE | H25: RECIPE QTY COST
B26: I | D26: 00 FLOUR | E26: 250 | F26: =IFERROR(VLOOKUP(D26,INGREDIENTS!$B:$G,5,FALSE),"") -> Grams | G26: =IFERROR(VLOOKUP(D26,INGREDIENTS!$B:$G,6,FALSE),"") -> 0.00182 | H26: =IFERROR(PRODUCT(G26,E26),0) -> 0.455
B27: I | D27: BAKING POWDER | E27: 5 | F27: =IFERROR(VLOOKUP(D27,INGREDIENTS!$B:$G,5,FALSE),"") -> Grams | G27: =IFERROR(VLOOKUP(D27,INGREDIENTS!$B:$G,6,FALSE),"") -> 0.00824 | H27: =IFERROR(PRODUCT(G27,E27),0) -> 0.0412
B28: I | D28: ICING SUGAR | E28: 100 | F28: =IFERROR(VLOOKUP(D28,INGREDIENTS!$B:$G,5,FALSE),"") -> Grams | G28: =IFERROR(VLOOKUP(D28,INGREDIENTS!$B:$G,6,FALSE),"") -> 0.0065 | H28: =IFERROR(PRODUCT(G28,E28),0) -> 0.65
B29: I | D29: UNSALTED BUTTER | E29: 100 | F29: =IFERROR(VLOOKUP(D29,INGREDIENTS!$B:$G,5,FALSE),"") -> Grams | G29: =IFERROR(VLOOKUP(D29,INGREDIENTS!$B:$G,6,FALSE),"") -> 0.01706666667 | H29: =IFERROR(PRODUCT(G29,E29),0) -> 1.706666667
B30: I
D32: TOTAL COST | H32: =SUM(H26:H31) -> 2.852866667
C35: RECIPE NAME: | D35: VANILA CAKE
B36: ="U-" & D35 -> U-VANILA CAKE | C36: UNIT SIZE: | D36: 1 | E36: No
C37: FINISHED QUANTITY: | D37: 1 | E37: No
B38: ="P-" &D35 -> P-VANILA CAKE | C38: UNIT PRICE Rs: | D38: =IFERROR(ROUND(H46/D37*D36,2),0) -> 4.28 | E38: ="/" & D36 & " " & E36 -> /1 No
C39: PREPARATION | D39: INGREDIENTS | E39: RECIPE QUANTITY | F39: RECIPE QTY UNIT | G39: COSTING UNIT PRICE | H39: RECIPE QTY COST
B40: I | D40: BAKING POWDER | E40: 100 | F40: =IFERROR(VLOOKUP(D40,INGREDIENTS!$B:$G,5,FALSE),"") -> Grams | G40: =IFERROR(VLOOKUP(D40,INGREDIENTS!$B:$G,6,FALSE),"") -> 0.00824 | H40: =IFERROR(PRODUCT(G40,E40),0) -> 0.824
B41: I | D41: CASTER SUGAR | E41: 20 | F41: =IFERROR(VLOOKUP(D41,INGREDIENTS!$B:$G,5,FALSE),"") -> Grams | G41: =IFERROR(VLOOKUP(D41,INGREDIENTS!$B:$G,6,FALSE),"") -> 0.002126666667 | H41: =IFERROR(PRODUCT(G41,E41),0) -> 0.04253333333
B42: I | D42: CHOC BROWNIE | E42: 50 | F42: =IFERROR(VLOOKUP(D42,INGREDIENTS!$B:$G,5,FALSE),"") -> Grams | G42: =IFERROR(VLOOKUP(D42,INGREDIENTS!$B:$G,6,FALSE),"") -> 0.01331755915 | H42: =IFERROR(PRODUCT(G42,E42),0) -> 0.6658779577
B43: I | D43: VANILLA | E43: 50 | F43: =IFERROR(VLOOKUP(D43,INGREDIENTS!$B:$G,5,FALSE),"") -> Grams | G43: =IFERROR(VLOOKUP(D43,INGREDIENTS!$B:$G,6,FALSE),"") -> 0.055 | H43: =IFERROR(PRODUCT(G43,E43),0) -> 2.75
B44: I
D46: TOTAL COST | H46: =SUM(H40:H45) -> 4.282411291

Sheet R-SANDWICH
C2: RECIPES
C5: RECIPE NAME: | D5: Veg Sandwich
B6: ="U-" & D5 -> U-Veg Sandwich | C6: UNIT SIZE: | D6: 1 | E6: No
C7: FINISHED QUANTITY: | D7: 1 | E7: No
B8: ="P-" &D5 -> P-Veg Sandwich | C8: UNIT PRICE Rs: | D8: =IFERROR(ROUND(H17/D7*D6,2),0) -> 2.6 | E8: ="/" & D6 & " " & E6 -> /1 No
C9: PREPARATION | D9: INGREDIENTS | E9: RECIPE QUANTITY | F9: RECIPE QTY UNIT | G9: COSTING UNIT PRICE | H9: RECIPE QTY COST
B10: I | D10: BREAD | E10: 2 | F10: =IFERROR(VLOOKUP(D10,INGREDIENTS!$B:$G,5,FALSE),"") -> No | G10: =IFERROR(VLOOKUP(D10,INGREDIENTS!$B:$G,6,FALSE),"") -> 0.3333333333 | H10: =IFERROR(PRODUCT(G10,E10),0) -> 0.6666666667
B11: I | D11: EGG | E11: 1 | F11: =IFERROR(VLOOKUP(D11,INGREDIENTS!$B:$G,5,FALSE),"") -> Grams | G11: =IFERROR(VLOOKUP(D11,INGREDIENTS!$B:$G,6,FALSE),"") -> 0.007777777778 | H11: 0.007777777778
B12: I | D12: LETUCE | E12: 25 | F12: =IFERROR(VLOOKUP(D12,INGREDIENTS!$B:$G,5,FALSE),"") -> Grams | G12: =IFERROR(VLOOKUP(D12,INGREDIENTS!$B:$G,6,FALSE),"") -> 0.005 | H12: 0.125
B13: I | D13: MEAT | E13: 100 | F13: =IFERROR(VLOOKUP(D13,INGREDIENTS!$B:$G,5,FALSE),"") -> Grams | G13: =IFERROR(VLOOKUP(D13,INGREDIENTS!$B:$G,6,FALSE),"") -> 0.007 | H13: 0.7
B14: I | D14: PEELED TOMATOES | E14: 50 | F14: =IFERROR(VLOOKUP(D14,INGREDIENTS!$B:$G,5,FALSE),"") -> Grams | G14: =IFERROR(VLOOKUP(D14,INGREDIENTS!$B:$G,6,FALSE),"") -> 0.005 | H14: 0.25
B15: I | D15: UNSALTED BUTTER | E15: 50 | F15: =IFERROR(VLOOKUP(D15,INGREDIENTS!$B:$G,5,FALSE),"") -> Grams | G15: =IFERROR(VLOOKUP(D15,INGREDIENTS!$B:$G,6,FALSE),"") -> 0.01706666667 | H15: 0.8533333333
D17: TOTAL COST | H17: =SUM(H10:H16) -> 2.602777778

Sheet R-DRINKS
C2: RECIPES
C5: RECIPE NAME: | D5: BROWNIE SHAKE
B6: ="U-" & D5 -> U-BROWNIE SHAKE | C6: UNIT SIZE: | D6: 1 | E6: No
C7: FINISHED QUANTITY: | D7: 1 | E7: No
B8: ="P-" &D5 -> P-BROWNIE SHAKE | C8: UNIT PRICE Rs: | D8: =IFERROR(ROUND(H16/D7*D6,2),0) -> 4.25 | E8: ="/" & D6 & " " & E6 -> /1 No
C9: PREPARATION | D9: INGREDIENTS | E9: RECIPE QUANTITY | F9: RECIPE QTY UNIT | G9: COSTING UNIT PRICE | H9: RECIPE QTY COST
B10: I | D10: BROWNIE | E10: 0.5 | F10: =IFERROR(VLOOKUP("U-"&D10,'R-CAKE'!B:G,4,FALSE),"") -> No | G10: =IFERROR(VLOOKUP("P-"&D10,'R-CAKE'!B:H,3,FALSE)/VLOOKUP("U-"&D10,'R-CAKE'!B:H,3,FALSE),"") -> 1.06 | H10: =IFERROR(PRODUCT(G10,E10),0) -> 0.53 | J10: R-CAKE | K10: =MATCH("U-" & D10,'R-CAKE'!B:B,FALSE)-1 -> 5
B11: I | D11: GROUND COFFEE | E11: 10 | F11: =IFERROR(VLOOKUP(D11,INGREDIENTS!$B:$G,5,FALSE),"") -> Grams | G11: =IFERROR(VLOOKUP(D11,INGREDIENTS!$B:$G,6,FALSE),"") -> 0.032 | H11: =IFERROR(PRODUCT(G11,E11),0) -> 0.32
B12: I | D12: ICING SUGAR | E12: 100 | F12: =IFERROR(VLOOKUP(D12,INGREDIENTS!$B:$G,5,FALSE),"") -> Grams | G12: =IFERROR(VLOOKUP(D12,INGREDIENTS!$B:$G,6,FALSE),"") -> 0.0065 | H12: =IFERROR(PRODUCT(G12,E12),0) -> 0.65
B13: I | D13: VANILLA | E13: 50 | F13: =IFERROR(VLOOKUP(D13,INGREDIENTS!$B:$G,5,FALSE),"") -> Grams | G13: =IFERROR(VLOOKUP(D13,INGREDIENTS!$B:$G,6,FALSE),"") -> 0.055 | H13: =IFERROR(PRODUCT(G13,E13),0) -> 2.75
B14: I
D16: TOTAL COST | H16: =SUM(H10:H15) -> 4.25

Sheet R-Cat 4
C2: RECIPES

Sheet R-Cat 5
C2: RECIPES
